[Event "Reykjavik Open 2025"]
[Site "Reykjavik"]
[Date "2025.04.11"]
[Round "4.36"]
[White "Licznerski, Lukasz"]
[Black "Shafer, Logan C"]
[Result "1/2-1/2"]
[Annotator "RC"]
[ECO "B20"]
[WhiteElo "2436"]
[BlackElo "2193"]
[PlyCount "130"]
[EventDate "2025.04.09"]
[EventType "swiss"]
[EventCountry "ISL"]
[SourceTitle "playchess.com"]
[Source "ChessBase"]
[SourceQuality "1"]
[TimeControl "40/5400+30:1800+30"]

1. e4 {[%emt 0:00:26]} c5 {[%emt 0:00:07]} 2. Ne2 {[%emt 0:02:03]} Nf6 {[%emt 0:00:59]} 3. Nbc3 {[%emt 0:02:09]} d5 {[%emt 0:00:55]} 4. exd5 {[%emt 0:09:25]} Nxd5 {[%emt 0:00:08]} 5. Nxd5 {[%emt 0:00:48]} Qxd5 {[%emt 0:00:07]} 6. d4 {[%emt 0:00:04]} e5 {[%emt 0:00:08]} 7. Nc3 {[%emt 0:03:35]} Qxd4 {[%emt 0:00:14]} 8. Be3 {[%emt 0:08:05]} Bg4 {[%emt 0:00:38]} 9. Bxd4 {[%emt 0:12:53]} Bxd1 {[%emt 0:00:07]} 10. Bxe5 {[%emt 0:00:04]} Bxc2 {[%emt 0:00:07]} 11. Rc1 {[%emt 0:23:32]} Bf5 {[%emt 0:03:22]} 12. Nb5 {[%emt 0:03:07]} Nc6 {[%emt 0:15:04]} 13. Bxg7 {[%emt 0:05:29]} Bxg7 {[%emt 0:00:07]} 14. Nd6+ {[%emt 0:00:03]} Kd7 {[%emt 0:00:24]} 15. Nxf5 {[%emt 0:00:02]} Rhe8+ {[%emt 0:01:53]} 16. Be2 {[%emt 0:00:42]} Bd4 {[%emt 0:07:13]} 17. Rc2 {[%emt 0:08:00]} Re5 {[%emt 0:02:02]} 18. g4 {[%emt 0:00:02]} Rae8 {[%emt 0:04:12]} 19. Kf1 {[%emt 0:00:27]} a6 {[%emt 0:15:19]} 20. Bf3 {[%emt 0:03:04]} Re1+ {[%emt 0:07:03]} 21. Kg2 {[%emt 0:00:02]} Rxh1 {[%emt 0:00:10]} 22. Kxh1 {[%emt 0:00:13]} Re1+ {[%emt 0:00:46]} 23. Kg2 {[%emt 0:00:01]} Be5 {[%emt 0:03:31]} 24. Rxc5 {[%emt 0:01:29]} Bxb2 {[%emt 0:00:16]} 25. Bxc6+ {[%emt 0:03:07]} bxc6 {[%emt 0:00:02]} 26. Ra5 {[%emt 0:00:11]} Be5 {[%emt 0:06:07]} 27. Rxa6 {[%emt 0:01:02]} c5 {[%emt 0:00:20]} 28. Ra7+ {[%emt 0:00:41]} Kc6 {[%emt 0:00:38]} 29. Ne3 {[%emt 0:04:25]} Bd4 {[%emt 0:02:28]} 30. Nc2 {[%emt 0:05:54]} Re2 {[%emt 0:01:14]} 31. Nxd4+ {[%emt 0:00:03]} cxd4 {[%emt 0:00:01]} 32. Rxf7 {[%emt 0:00:12]} Re8 {[%emt 0:01:01]} 33. Rf3 {[%emt 0:02:42]} Kc5 {[%emt 0:00:37]} 34. h4 {[%emt 0:01:22]} Kc4 {[%emt 0:01:03]} 35. Rf7 {[%emt 0:00:21]} d3 {[%emt 0:01:05]} 36. Rxh7 {[%emt 0:00:42]} d2 {[%emt 0:14:08]} 37. Rd7 {[%emt 0:00:03]} Kc3 {[%emt 0:00:08]} 38. Kf3 {[%emt 0:01:06]} Re7 {[%emt 0:00:54]} 39. Rd8 {[%emt 0:00:43]} Re8 {[%emt 0:00:05]} 40. Rd7 {[%emt 0:00:32]} Re7 {[%emt 0:00:03]} 41. Rd5 {[%emt 0:31:10]} Re5 {[%emt 0:30:45]} 42. Rxd2 {[%emt 0:00:00]} Kxd2 {[%emt 0:00:00]} 43. h5 {[%emt 0:00:00]} Kd3 {[%emt 0:00:00]} 44. Kf4 {[%emt 0:00:00]} Re2 {[%emt 0:00:00]} 45. f3 {[%emt 0:00:00]} Rxa2 {[%emt 0:00:00]} 46. h6 {[%emt 0:00:00]} Ra4+ {[%emt 0:00:00]} 47. Kf5 {[%emt 0:00:00]} Ra5+ {[%emt 0:00:00]} 48. Kg6 {[%emt 0:00:00]} Ke3 {[%emt 0:00:00]} 49. h7 {[%emt 0:00:33]} Ra8 {[%emt 0:00:00]} 50. g5 {[%emt 0:01:35]} Kf4 {[%emt 0:00:00]} 51. Kh6 {[%emt 0:02:02]} Kf5 {[%emt 0:00:00]} 52. g6 {[%emt 0:00:24]} Kf6 {[%emt 0:00:00]} 53. f4 {[%emt 0:00:44]} Rb8 {[%emt 0:00:00]} 54. g7 {[%emt 0:01:35]} Rb1 {[%emt 0:00:00]} 55. g8=N+ {[%emt 0:00:11]} Kf7 {[%emt 0:00:00]} 56. Nf6 {[%emt 0:00:34]} Rb8 {[%emt 0:00:00]} 57. Nd7 {[%emt 0:00:08]} Rd8 {[%emt 0:00:00]} 58. Ne5+ {[%emt 0:00:13]} Kf6 {[%emt 0:00:00]} 59. Ng6 {[%emt 0:01:16]} Kf5 {[%emt 0:00:00]} 60. Kg7 {[%emt 0:00:12]} Rd7+ {[%emt 0:00:00]} 61. Kh6 {[%emt 0:00:06]} Rd8 {[%emt 0:00:00]} 62. Kh5 {[%emt 0:00:06]} Re8 {[%emt 0:00:00]} 63. Ne7+ {[%emt 0:01:13]} Kf6 {[%emt 0:00:00]} 64. Kh6 {[%emt 0:01:05]} Kxe7 {[%emt 0:00:00]} 65. Kg7 {[%emt 0:00:02]} Ke6 {[%emt 0:00:00]} 1/2-1/2

[Event "Reykjavik Open 2025"]
[Site "Reykjavik"]
[Date "2025.04.11"]
[Round "4.37"]
[White "Ornolfsson, Magnus P."]
[Black "Prraneeth Vuppala"]
[Result "0-1"]
[Annotator "ChessBase"]
[ECO "A46"]
[WhiteElo "2174"]
[BlackElo "2433"]
[PlyCount "48"]
[EventDate "2025.04.09"]
[EventType "swiss"]
[EventCountry "ISL"]
[SourceTitle "playchess.com"]
[Source "ChessBase"]
[SourceQuality "1"]
[TimeControl "40/5400+30:1800+30"]

1. d4 {[%emt 0:00:02]} Nf6 {[%emt 0:00:25]} 2. Nf3 {[%emt 0:00:09]} e6 {[%emt 0:00:07]} 3. g3 {[%emt 0:00:20]} b5 {[%emt 0:00:15]} 4. Bg2 {[%emt 0:00:45]} Bb7 {[%emt 0:00:07]} 5. O-O {[%emt 0:00:43]} Be7 {[%emt 0:00:10]} 6. a4 {[%emt 0:04:27]} b4 {[%emt 0:00:35]} 7. a5 {[%emt 0:03:14]} O-O {[%emt 0:02:06]} 8. c4 {[%emt 0:04:00]} a6 {[%emt 0:04:42]} 9. Nbd2 {[%emt 0:06:00]} d6 {[%emt 0:02:36]} 10. Nb3 {[%emt 0:05:07]} Nbd7 {[%emt 0:04:20]} 11. Bf4 {[%emt 0:04:28]} Ne4 {[%emt 0:06:20]} 12. Qc2 {[%emt 0:03:10]} f5 {[%emt 0:11:30]} 13. h4 {[%emt 0:06:34]} h6 {[%emt 0:02:32]} 14. Rfd1 {[%emt 0:06:30]} Ndf6 {[%emt 0:04:06]} 15. Nfd2 {[%emt 0:03:16]} Qe8 {[%emt 0:04:10]} 16. Nxe4 {[%emt 0:01:59]} Bxe4 {[%emt 0:00:27]} 17. Qd2 {[%emt 0:03:21]} Bxg2 {[%emt 0:05:49]} 18. Kxg2 {[%emt 0:00:20]} g5 {[%emt 0:04:41]} 19. hxg5 {[%emt 0:05:12]} hxg5 {[%emt 0:00:09]} 20. Be3 {[%emt 0:01:06]} f4 {[%emt 0:01:32]} 21. Bxf4 {[%emt 0:03:24]} gxf4 {[%emt 0:00:23]} 22. Qxf4 {[%emt 0:00:24]} Qg6 {[%emt 0:01:21]} 23. Rf1 {[%emt 0:05:51]} Ng4 {[%emt 0:01:44]} 24. Qd2 {[%emt 0:01:17]} Qe4+ {[%emt 0:03:41]} 0-1

[Event "Reykjavik Open 2025"]
[Site "Reykjavik"]
[Date "2025.04.11"]
[Round "4.38"]
[White "Niermann, Tristan"]
[Black "Harish, Neeraj"]
[Result "1-0"]
[Annotator "RC"]
[ECO "E14"]
[WhiteElo "2427"]
[BlackElo "2169"]
[PlyCount "89"]
[EventDate "2025.04.09"]
[EventType "swiss"]
[EventCountry "ISL"]
[SourceTitle "playchess.com"]
[Source "ChessBase"]
[SourceQuality "1"]
[TimeControl "40/5400+30:1800+30"]

1. c4 {[%emt 0:00:03]} e6 {[%emt 0:00:09]} 2. Nf3 {[%emt 0:00:05]} d5 {[%emt 0:00:06]} 3. e3 {[%emt 0:00:04]} Nf6 {[%emt 0:00:23]} 4. Nc3 {[%emt 0:00:07]} Be7 {[%emt 0:00:26]} 5. b3 {[%emt 0:00:22]} O-O {[%emt 0:00:36]} 6. Bb2 {[%emt 0:00:05]} b6 {[%emt 0:02:40]} 7. cxd5 {[%emt 0:01:29]} exd5 {[%emt 0:00:12]} 8. d4 {[%emt 0:00:24]} Bb7 {[%emt 0:04:44]} 9. Bd3 {[%emt 0:00:13]} Nbd7 {[%emt 0:00:39]} 10. O-O {[%emt 0:00:13]} Re8 {[%emt 0:00:56]} 11. Rc1 {[%emt 0:01:53]} a6 {[%emt 0:01:01]} 12. Qc2 {[%emt 0:07:57]} Bd6 {[%emt 0:05:10]} 13. Ne2 {[%emt 0:00:24]} Ne4 {[%emt 0:09:31]} 14. Ng3 {[%emt 0:01:17]} g6 {[%emt 0:01:09]} 15. Ne5 {[%emt 0:01:49]} Ndf6 {[%emt 0:12:31]} 16. Nc6 {[%emt 0:04:09]} Qd7 {[%emt 0:01:03]} 17. b4 {[%emt 0:07:13]} h5 {[%emt 0:05:13]} 18. b5 {[%emt 0:02:32]} axb5 {[%emt 0:08:30]} 19. Bxb5 {[%emt 0:00:32]} Ba6 {[%emt 0:00:15]} 20. a4 {[%emt 0:00:26]} Bxb5 {[%emt 0:00:20]} 21. axb5 {[%emt 0:00:53]} h4 {[%emt 0:03:07]} 22. Nxe4 {[%emt 0:00:33]} Nxe4 {[%emt 0:00:17]} 23. f3 {[%emt 0:01:35]} Ng5 {[%emt 0:05:04]} 24. e4 {[%emt 0:31:45]} Bf4 {[%emt 0:10:05]} 25. Rce1 {[%emt 0:00:38]} Qd6 {[%emt 0:04:48]} 26. e5 {[%emt 0:01:05]} Qd7 {[%emt 0:00:05]} 27. Qf2 {[%emt 0:02:11]} Kg7 {[%emt 0:03:16]} 28. Qxh4 {[%emt 0:02:55]} Qf5 {[%emt 0:03:44]} 29. Bc1 {[%emt 0:04:04]} Bxc1 {[%emt 0:02:57]} 30. Rxc1 {[%emt 0:00:10]} Rh8 {[%emt 0:01:49]} 31. Qg3 {[%emt 0:03:26]} Rh5 {[%emt 0:02:29]} 32. Ne7 {[%emt 0:07:45]} Qd7 {[%emt 0:01:51]} 33. Nc6 {[%emt 0:01:40]} Rah8 {[%emt 0:00:34]} 34. Qf4 {[%emt 0:02:00]} Qf5 {[%emt 0:03:10]} 35. Qxf5 {[%emt 0:00:30]} gxf5 {[%emt 0:00:06]} 36. h3 {[%emt 0:03:09]} Ne6 {[%emt 0:00:09]} 37. f4 {[%emt 0:03:56]} Ra8 {[%emt 0:03:34]} 38. Rf2 {[%emt 0:00:59]} Ra4 {[%emt 0:01:25]} 39. Ne7 {[%emt 0:02:27]} Kf8 {[%emt 0:02:00]} 40. Nxd5 {[%emt 0:00:43]} Rxd4 {[%emt 0:00:08]} 41. Nxc7 {[%emt 0:34:17]} Nxf4 {[%emt 0:32:47]} 42. Rc6 {[%emt 0:00:00]} Rg5 {[%emt 0:00:00]} 43. Kh2 {[%emt 0:00:00]} Rd1 {[%emt 0:00:00]} 44. e6 {[%emt 0:00:00]} Nxe6 {[%emt 0:00:00]} 45. Rxe6 {[%emt 0:00:00]} 1-0

[Event "Reykjavik Open 2025"]
[Site "Reykjavik"]
[Date "2025.04.11"]
[Round "4.39"]
[White "Tscheuschner, Georg"]
[Black "Fantinel, Thibault"]
[Result "1/2-1/2"]
[Annotator "RC"]
[ECO "E60"]
[WhiteElo "2168"]
[BlackElo "2411"]
[PlyCount "159"]
[EventDate "2025.04.09"]
[EventType "swiss"]
[EventCountry "ISL"]
[SourceTitle "playchess.com"]
[Source "ChessBase"]
[SourceQuality "1"]
[TimeControl "40/5400+30:1800+30"]

1. Nf3 {[%emt 0:00:04]} g6 {[%emt 0:00:11]} 2. d4 {[%emt 0:00:09]} Nf6 {[%emt 0:00:22]} 3. c4 {[%emt 0:00:05]} Bg7 {[%emt 0:00:22]} 4. g3 {[%emt 0:00:06]} d6 {[%emt 0:00:08]} 5. Nc3 {[%emt 0:00:04]} Bf5 {[%emt 0:00:15]} 6. Bg2 {[%emt 0:02:12]} Ne4 {[%emt 0:00:15]} 7. Nh4 {[%emt 0:05:57]} Nxc3 {[%emt 0:00:24]} 8. bxc3 {[%emt 0:00:02]} Bc8 {[%emt 0:00:10]} 9. O-O {[%emt 0:17:23]} O-O {[%emt 0:00:05]} 10. f4 {[%emt 0:08:20]} Nd7 {[%emt 0:00:17]} 11. f5 {[%emt 0:06:19]} e6 {[%emt 0:00:06]} 12. fxe6 {[%emt 0:09:42]} fxe6 {[%emt 0:00:05]} 13. Rxf8+ {[%emt 0:00:11]} Qxf8 {[%emt 0:00:04]} 14. Qb3 {[%emt 0:00:46]} a5 {[%emt 0:00:56]} 15. c5 {[%emt 0:02:38]} dxc5 {[%emt 0:13:13]} 16. Qxe6+ {[%emt 0:00:25]} Qf7 {[%emt 0:07:04]} 17. Bd5 {[%emt 0:08:42]} Qxe6 {[%emt 0:01:28]} 18. Bxe6+ {[%emt 0:00:02]} Kh8 {[%emt 0:00:37]} 19. Nf3 {[%emt 0:00:10]} cxd4 {[%emt 0:01:36]} 20. Nxd4 {[%emt 0:09:58]} Nc5 {[%emt 0:04:25]} 21. Bxc8 {[%emt 0:07:59]} Rxc8 {[%emt 0:00:05]} 22. Rb1 {[%emt 0:00:10]} Ne4 {[%emt 0:07:33]} 23. Rxb7 {[%emt 0:02:18]} Nxc3 {[%emt 0:00:50]} 24. Be3 {[%emt 0:00:18]} Nd1 {[%emt 0:02:50]} 25. Nc2 {[%emt 0:01:29]} Nxe3 {[%emt 0:00:05]} 26. Nxe3 {[%emt 0:00:05]} Bd4 {[%emt 0:00:05]} 27. Rb3 {[%emt 0:00:29]} c5 {[%emt 0:01:10]} 28. Rd3 {[%emt 0:01:48]} Kg7 {[%emt 0:22:48]} 29. Kf1 {[%emt 0:00:11]} Rf8+ {[%emt 0:08:39]} 30. Ke1 {[%emt 0:00:42]} Rb8 {[%emt 0:02:13]} 31. Nc4 {[%emt 0:01:09]} Rb4 {[%emt 0:06:15]} 32. Nxa5 {[%emt 0:01:43]} Rb1+ {[%emt 0:00:03]} 33. Kd2 {[%emt 0:00:08]} Rb2+ {[%emt 0:00:12]} 34. Kd1 {[%emt 0:00:25]} Rxa2 {[%emt 0:00:03]} 35. Nc4 {[%emt 0:04:48]} Ra4 {[%emt 0:00:37]} 36. Na3 {[%emt 0:04:28]} Kf6 {[%emt 0:02:22]} 37. Nc2 {[%emt 0:02:08]} Ke5 {[%emt 0:02:24]} 38. Nxd4 {[%emt 0:02:24]} Ra1+ {[%emt 0:06:28]} 39. Kd2 {[%emt 0:00:02]} cxd4 {[%emt 0:00:03]} 40. Rf3 {[%emt 0:01:22]} Rh1 {[%emt 0:05:41]} 41. h4 {[%emt 0:30:08]} Rg1 {[%emt 0:30:40]} 42. Kd3 {[%emt 0:01:42]} Ra1 {[%emt 0:00:10]} 43. Kd2 {[%emt 0:01:20]} h6 {[%emt 0:00:07]} 44. Rb3 {[%emt 0:00:00]} Rg1 {[%emt 0:00:00]} 45. Rf3 {[%emt 0:00:00]} g5 {[%emt 0:00:00]} 46. hxg5 {[%emt 0:00:00]} hxg5 {[%emt 0:00:00]} 47. Ra3 {[%emt 0:00:00]} Ke4 {[%emt 0:00:00]} 48. Rb3 {[%emt 0:00:00]} g4 {[%emt 0:00:00]} 49. Rb8 {[%emt 0:00:00]} Rxg3 {[%emt 0:00:00]} 50. Re8+ {[%emt 0:00:00]} Kf5 {[%emt 0:00:00]} 51. Rf8+ {[%emt 0:00:00]} Kg5 {[%emt 0:00:00]} 52. Rg8+ {[%emt 0:00:00]} Kf6 {[%emt 0:00:00]} 53. Rf8+ {[%emt 0:00:00]} Kg5 {[%emt 0:00:00]} 54. Rg8+ {[%emt 0:00:00]} Kh6 {[%emt 0:00:00]} 55. Rh8+ {[%emt 0:00:00]} Kg6 {[%emt 0:00:00]} 56. Rg8+ {[%emt 0:00:00]} Kf7 {[%emt 0:00:00]} 57. Rd8 {[%emt 0:00:00]} Ra3 {[%emt 0:00:00]} 58. Ke1 {[%emt 0:00:00]} Ra4 {[%emt 0:00:00]} 59. Rd6 {[%emt 0:00:00]} g3 {[%emt 0:00:00]} 60. Kf1 {[%emt 0:00:00]} Ke7 {[%emt 0:00:00]} 61. Rg6 {[%emt 0:00:00]} Ra1+ {[%emt 0:00:00]} 62. Kg2 {[%emt 0:00:00]} Ra2 {[%emt 0:00:00]} 63. Kf3 {[%emt 0:02:03]} Ra3+ {[%emt 0:00:00]} 64. Ke4 {[%emt 0:02:30]} Kf7 {[%emt 0:00:00]} 65. Rg4 {[%emt 0:00:10]} Kf6 {[%emt 0:00:00]} 66. Rg8 {[%emt 0:00:09]} Rb3 {[%emt 0:00:00]} 67. Rg4 {[%emt 0:01:05]} Re3+ {[%emt 0:04:04]} 68. Kxd4 {[%emt 0:02:04]} Kf5 {[%emt 0:00:20]} 69. Rg8 {[%emt 0:00:05]} Re4+ {[%emt 0:00:05]} 70. Kd3 {[%emt 0:00:03]} Rg4 {[%emt 0:01:04]} 71. e4+ {[%emt 0:00:07]} Kf4 {[%emt 0:00:23]} 72. Rf8+ {[%emt 0:00:10]} Kg5 {[%emt 0:02:04]} 73. Rg8+ {[%emt 0:00:06]} Kf4 {[%emt 0:00:22]} 74. Rf8+ {[%emt 0:00:04]} Ke5 {[%emt 0:00:02]} 75. Rf5+ {[%emt 0:00:06]} Ke6 {[%emt 0:00:01]} 76. Rf1 {[%emt 0:00:05]} g2 {[%emt 0:00:27]} 77. Rg1 {[%emt 0:00:04]} Ke5 {[%emt 0:00:05]} 78. Ke3 {[%emt 0:00:04]} Rxe4+ {[%emt 0:00:35]} 79. Kf3 {[%emt 0:00:07]} Rb4 {[%emt 0:00:11]} 80. Rxg2 {[%emt 0:00:05]} 1/2-1/2

[Event "Reykjavik Open 2025"]
[Site "Reykjavik"]
[Date "2025.04.11"]
[Round "4.40"]
[White "Tahay, Alexis"]
[Black "Villiers, Thomas"]
[Result "1-0"]
[Annotator "ChessBase"]
[ECO "C11"]
[WhiteElo "2397"]
[BlackElo "2154"]
[PlyCount "127"]
[EventDate "2025.04.09"]
[EventType "swiss"]
[EventCountry "ISL"]
[SourceTitle "playchess.com"]
[Source "ChessBase"]
[SourceQuality "1"]
[TimeControl "40/5400+30:1800+30"]

1. e4 {[%emt 0:00:03]} e6 {[%emt 0:00:19]} 2. d4 {[%emt 0:00:04]} d5 {[%emt 0:00:07]} 3. Nc3 {[%emt 0:00:06]} Nf6 {[%emt 0:00:51]} 4. e5 {[%emt 0:01:22]} Nfd7 {[%emt 0:00:08]} 5. f4 {[%emt 0:00:10]} c5 {[%emt 0:00:10]} 6. Nf3 {[%emt 0:00:04]} Nc6 {[%emt 0:00:09]} 7. Be3 {[%emt 0:00:23]} Be7 {[%emt 0:00:55]} 8. Qd2 {[%emt 0:00:10]} O-O {[%emt 0:00:23]} 9. dxc5 {[%emt 0:00:11]} Qa5 {[%emt 0:00:27]} 10. a3 {[%emt 0:00:36]} Bxc5 {[%emt 0:00:31]} 11. Bxc5 {[%emt 0:02:39]} Nxc5 {[%emt 0:00:58]} 12. O-O-O {[%emt 0:00:47]} a6 {[%emt 0:00:36]} 13. Qe3 {[%emt 0:00:35]} Qb6 {[%emt 0:05:50]} 14. Nd4 {[%emt 0:04:16]} Rd8 {[%emt 0:04:43]} 15. Be2 {[%emt 0:03:13]} Ne4 {[%emt 0:05:36]} 16. Nxe4 {[%emt 0:02:11]} dxe4 {[%emt 0:00:06]} 17. Nf5 {[%emt 0:03:37]} Qxe3+ {[%emt 0:04:49]} 18. Nxe3 {[%emt 0:00:08]} Kf8 {[%emt 0:06:13]} 19. Rxd8+ {[%emt 0:01:34]} Nxd8 {[%emt 0:00:06]} 20. Nc4 {[%emt 0:02:09]} b5 {[%emt 0:02:35]} 21. Rd1 {[%emt 0:02:04]} Ke7 {[%emt 0:01:21]} 22. Nd6 {[%emt 0:01:56]} Bb7 {[%emt 0:01:45]} 23. Nxb7 {[%emt 0:02:21]} Nxb7 {[%emt 0:00:06]} 24. Rd4 {[%emt 0:00:19]} Nc5 {[%emt 0:00:19]} 25. Kd2 {[%emt 0:04:05]} Rd8 {[%emt 0:07:10]} 26. Rxd8 {[%emt 0:01:35]} Kxd8 {[%emt 0:00:05]} 27. b4 {[%emt 0:00:15]} Nb7 {[%emt 0:05:53]} 28. Ke3 {[%emt 0:00:49]} Kc7 {[%emt 0:00:10]} 29. Kxe4 {[%emt 0:00:32]} f5+ {[%emt 0:01:49]} 30. Kd4 {[%emt 0:00:36]} Nd8 {[%emt 0:01:02]} 31. g4 {[%emt 0:02:45]} g6 {[%emt 0:10:17]} 32. gxf5 {[%emt 0:04:13]} gxf5 {[%emt 0:00:24]} 33. Bh5 {[%emt 0:00:52]} Nc6+ {[%emt 0:01:17]} 34. Ke3 {[%emt 0:04:11]} a5 {[%emt 0:02:40]} 35. c3 {[%emt 0:00:44]} axb4 {[%emt 0:00:09]} 36. cxb4 {[%emt 0:03:38]} Ne7 {[%emt 0:00:17]} 37. Bf3 {[%emt 0:00:34]} Ng6 {[%emt 0:02:39]} 38. Be2 {[%emt 0:00:11]} Kc6 {[%emt 0:00:49]} 39. Bh5 {[%emt 0:00:50]} Ne7 {[%emt 0:00:57]} 40. Be8+ {[%emt 0:00:38]} Kb6 {[%emt 0:00:05]} 41. Bd7 {[%emt 0:30:34]} Nd5+ {[%emt 0:30:12]} 42. Kf3 {[%emt 0:00:02]} Nc7 {[%emt 0:00:25]} 43. Kg3 {[%emt 0:00:14]} h6 {[%emt 0:00:05]} 44. Kh4 {[%emt 0:00:40]} Nd5 {[%emt 0:00:05]} 45. Bxe6 {[%emt 0:00:22]} Nxf4 {[%emt 0:00:08]} 46. Bxf5 {[%emt 0:00:05]} Kc6 {[%emt 0:00:36]} 47. Kg4 {[%emt 0:00:17]} Ne2 {[%emt 0:00:13]} 48. Be4+ {[%emt 0:00:47]} Kd7 {[%emt 0:00:06]} 49. Bd3 {[%emt 0:00:57]} Nd4 {[%emt 0:01:02]} 50. Kf4 {[%emt 0:00:14]} Ke6 {[%emt 0:00:27]} 51. Ke4 {[%emt 0:00:21]} Nc6 {[%emt 0:00:06]} 52. Bxb5 {[%emt 0:00:04]} Nxe5 {[%emt 0:00:05]} 53. Be2 {[%emt 0:00:02]} Kd6 {[%emt 0:00:59]} 54. Kd4 {[%emt 0:00:13]} Nd7 {[%emt 0:00:14]} 55. a4 {[%emt 0:00:19]} Nb6 {[%emt 0:00:11]} 56. a5 {[%emt 0:00:07]} Nd5 {[%emt 0:00:08]} 57. b5 {[%emt 0:00:16]} Nf4 {[%emt 0:00:07]} 58. Bf3 {[%emt 0:00:29]} Ne6+ {[%emt 0:00:07]} 59. Kc4 {[%emt 0:00:05]} Nd8 {[%emt 0:00:38]} 60. b6 {[%emt 0:00:14]} Nf7 {[%emt 0:00:06]} 61. Kb5 {[%emt 0:00:09]} Ne5 {[%emt 0:00:15]} 62. Be4 {[%emt 0:00:13]} Ng4 {[%emt 0:00:11]} 63. a6 {[%emt 0:00:11]} Nxh2 {[%emt 0:00:03]} 64. b7 {[%emt 0:18:03]} 1-0

[Event "Reykjavik Open 2025"]
[Site "Reykjavik"]
[Date "2025.04.11"]
[Round "4.41"]
[White "Kirk, Ezra"]
[Black "Ptacnikova, Lenka"]
[Result "1-0"]
[Annotator "ChessBase"]
[ECO "D41"]
[WhiteElo "2394"]
[BlackElo "2142"]
[PlyCount "63"]
[EventDate "2025.04.09"]
[EventType "swiss"]
[EventCountry "ISL"]
[SourceTitle "playchess.com"]
[Source "ChessBase"]
[SourceQuality "1"]
[TimeControl "40/5400+30:1800+30"]

1. d4 {[%emt 0:00:07]} Nf6 {[%emt 0:00:04]} 2. Nf3 {[%emt 0:00:17]} d5 {[%emt 0:00:56]} 3. c4 {[%emt 0:00:49]} e6 {[%emt 0:00:06]} 4. Nc3 {[%emt 0:00:18]} c5 {[%emt 0:00:05]} 5. cxd5 {[%emt 0:02:07]} Nxd5 {[%emt 0:00:16]} 6. e4 {[%emt 0:02:22]} Nxc3 {[%emt 0:00:04]} 7. bxc3 {[%emt 0:00:05]} cxd4 {[%emt 0:00:35]} 8. cxd4 {[%emt 0:00:11]} Nd7 {[%emt 0:00:43]} 9. Bd2 {[%emt 0:05:01]} Be7 {[%emt 0:02:20]} 10. Bd3 {[%emt 0:00:33]} O-O {[%emt 0:02:59]} 11. Qe2 {[%emt 0:02:17]} b6 {[%emt 0:00:59]} 12. h4 {[%emt 0:06:35]} e5 {[%emt 0:03:55]} 13. d5 {[%emt 0:06:17]} Bd6 {[%emt 0:07:47]} 14. h5 {[%emt 0:02:57]} Nc5 {[%emt 0:03:55]} 15. h6 {[%emt 0:00:21]} g6 {[%emt 0:04:53]} 16. O-O {[%emt 0:01:14]} Bg4 {[%emt 0:01:50]} 17. Qe3 {[%emt 0:11:42]} f6 {[%emt 0:17:22]} 18. Bb5 {[%emt 0:06:49]} Rf7 {[%emt 0:01:37]} 19. a4 {[%emt 0:04:07]} Rb8 {[%emt 0:00:19]} 20. a5 {[%emt 0:10:36]} a6 {[%emt 0:01:10]} 21. Bc6 {[%emt 0:01:44]} b5 {[%emt 0:00:58]} 22. Rfc1 {[%emt 0:05:10]} Na4 {[%emt 0:01:35]} 23. Nh2 {[%emt 0:01:38]} Bc8 {[%emt 0:03:22]} 24. Ra2 {[%emt 0:04:20]} Qf8 {[%emt 0:01:56]} 25. Rac2 {[%emt 0:02:43]} Ba3 {[%emt 0:05:26]} 26. Be8 {[%emt 0:02:33]} Bxc1 {[%emt 0:01:58]} 27. Bxf7+ {[%emt 0:01:35]} Qxf7 {[%emt 0:00:17]} 28. Rxc1 {[%emt 0:00:21]} Bb7 {[%emt 0:06:54]} 29. Bb4 {[%emt 0:02:25]} Rc8 {[%emt 0:03:32]} 30. Ng4 {[%emt 0:01:30]} Nb2 {[%emt 0:01:19]} 31. Rxc8+ {[%emt 0:01:01]} Bxc8 {[%emt 0:00:04]} 32. Qb6 {[%emt 0:00:12]} 1-0

[Event "Reykjavik Open 2025"]
[Site "Reykjavik"]
[Date "2025.04.11"]
[Round "4.42"]
[White "Pattnayak Nilsu"]
[Black "Terrieux, Kevin"]
[Result "0-1"]
[Annotator "ChessBase"]
[ECO "B51"]
[WhiteElo "2146"]
[BlackElo "2394"]
[PlyCount "104"]
[EventDate "2025.04.09"]
[EventType "swiss"]
[EventCountry "ISL"]
[SourceTitle "playchess.com"]
[Source "ChessBase"]
[SourceQuality "1"]
[TimeControl "40/5400+30:1800+30"]

1. e4 {[%emt 0:00:27]} c5 {[%emt 0:00:14]} 2. Nf3 {[%emt 0:00:13]} d6 {[%emt 0:01:14]} 3. Bb5+ {[%emt 0:00:11]} Nd7 {[%emt 0:00:18]} 4. O-O {[%emt 0:00:17]} a6 {[%emt 0:00:27]} 5. Bd3 {[%emt 0:00:13]} Ngf6 {[%emt 0:01:01]} 6. c3 {[%emt 0:00:32]} b5 {[%emt 0:00:24]} 7. Bc2 {[%emt 0:00:37]} Bb7 {[%emt 0:00:29]} 8. Re1 {[%emt 0:00:56]} c4 {[%emt 0:00:20]} 9. a4 {[%emt 0:01:23]} e5 {[%emt 0:00:12]} 10. axb5 {[%emt 0:06:41]} axb5 {[%emt 0:00:11]} 11. Rxa8 {[%emt 0:00:08]} Qxa8 {[%emt 0:00:07]} 12. Na3 {[%emt 0:00:14]} Be7 {[%emt 0:00:17]} 13. Nxb5 {[%emt 0:22:18]} O-O {[%emt 0:01:24]} 14. Qe2 {[%emt 0:02:57]} Rc8 {[%emt 0:01:16]} 15. d3 {[%emt 0:17:50]} cxd3 {[%emt 0:00:33]} 16. Bxd3 {[%emt 0:00:04]} Nc5 {[%emt 0:00:11]} 17. Bg5 {[%emt 0:00:09]} Bxe4 {[%emt 0:47:21]} 18. Bxe4 {[%emt 0:02:23]} Ncxe4 {[%emt 0:00:30]} 19. Bc1 {[%emt 0:05:40]} Qa4 {[%emt 0:11:00]} 20. Na3 {[%emt 0:07:39]} d5 {[%emt 0:03:02]} 21. Nxe5 {[%emt 0:09:32]} Bxa3 {[%emt 0:02:58]} 22. bxa3 {[%emt 0:00:18]} Rxc3 {[%emt 0:01:00]} 23. Ng4 {[%emt 0:01:50]} Nxg4 {[%emt 0:07:22]} 24. Qxg4 {[%emt 0:00:07]} Qc2 {[%emt 0:04:40]} 25. Qf4 {[%emt 0:02:21]} g5 {[%emt 0:01:53]} 26. Qb8+ {[%emt 0:00:30]} Kg7 {[%emt 0:04:05]} 27. Qb2 {[%emt 0:00:12]} d4 {[%emt 0:00:27]} 28. f3 {[%emt 0:02:22]} Nc5 {[%emt 0:01:52]} 29. Qxc2 {[%emt 0:01:39]} Rxc2 {[%emt 0:00:03]} 30. Bxg5 {[%emt 0:00:07]} Ne6 {[%emt 0:01:39]} 31. Bh4 {[%emt 0:07:35]} Ra2 {[%emt 0:02:27]} 32. Rd1 {[%emt 0:07:06]} Rxa3 {[%emt 0:00:26]} 33. Bf2 {[%emt 0:00:06]} Ra4 {[%emt 0:00:43]} 34. g3 {[%emt 0:00:20]} Kf6 {[%emt 0:00:16]} 35. Re1 {[%emt 0:01:52]} Ra3 {[%emt 0:02:13]} 36. Kg2 {[%emt 0:00:17]} Ra2 {[%emt 0:00:05]} 37. f4 {[%emt 0:00:53]} Nc5 {[%emt 0:00:18]} 38. Kf1 {[%emt 0:00:57]} Rxf2+ {[%emt 0:00:18]} 39. Kxf2 {[%emt 0:00:04]} Nd3+ {[%emt 0:00:04]} 40. Ke2 {[%emt 0:00:05]} Nxe1 {[%emt 0:00:06]} 41. Kxe1 {[%emt 0:30:05]} Kf5 {[%emt 0:30:52]} 42. Kd2 {[%emt 0:00:00]} Ke4 {[%emt 0:00:00]} 43. Ke2 {[%emt 0:00:00]} h5 {[%emt 0:00:00]} 44. f5 {[%emt 0:00:00]} Kxf5 {[%emt 0:00:00]} 45. Kf3 {[%emt 0:00:00]} Ke5 {[%emt 0:00:00]} 46. g4 {[%emt 0:00:00]} h4 {[%emt 0:00:00]} 47. h3 {[%emt 0:00:00]} f6 {[%emt 0:00:00]} 48. Ke2 {[%emt 0:00:00]} Kf4 {[%emt 0:00:00]} 49. Kd3 {[%emt 0:00:00]} Kg3 {[%emt 0:00:00]} 50. Kxd4 {[%emt 0:00:00]} Kxh3 {[%emt 0:00:00]} 51. Ke4 {[%emt 0:00:00]} Kxg4 {[%emt 0:00:00]} 52. Ke3 {[%emt 0:00:00]} Kg3 {[%emt 0:00:00]} 0-1